Organisation Name,Organisation Code,Directorate/Service,Service Category Label,Service Code,Supplier Name,Supplier Reference,Payment Date,Transaction Number,Net payment,Purpose of Spend
North West Leicestershire District Council,31UH,Information Technology,ICT Services,ICT,Firmstep,A030931,22/03/2017,1326449,2200,Website Maintenance
North West Leicestershire District Council,31UH,Planning & Development,Environment - Development Control,EDC,Cbec Eco-Engineering UK Ltd,A042193,31/03/2017,1337734,4040.28,External Legal Fees & Advice
North West Leicestershire District Council,31UH,Street Management,Environment Transport,ENOT,Mertrux Ltd,A035291,29/03/2017,1340722,683.24,Repairs - Parts
North West Leicestershire District Council,31UH,Housing,HRA Older Persons Service,HRAOPS,Tunstall Healthcare (UK) Limited,A001701,08/03/2017,1340914,624,Alarm System Telephones
North West Leicestershire District Council,31UH,Housing,HRA Older Persons Service,HRAOPS,Tunstall Healthcare (UK) Limited,A001701,08/03/2017,1341256,1124.1,Alarm System Telephones
North West Leicestershire District Council,31UH,Street Management,Environment Transport,ENOT,Innovative Safety Systems Limited,A038664,31/03/2017,1341258,2999,Vehicle Camera/recording Systems
North West Leicestershire District Council,31UH,Street Management,Environment Transport,ENOT,Innovative Safety Systems Limited,A038664,31/03/2017,1341259,2999,Vehicle Camera/recording Systems
North West Leicestershire District Council,31UH,Street Management,Environment Transport,ENOT,Innovative Safety Systems Limited,A038664,31/03/2017,1341415,2999,Vehicle Camera/recording Systems
North West Leicestershire District Council,31UH,Street Management,Environment Transport,ENOT,Innovative Safety Systems Limited,A038664,31/03/2017,1341421,2999,Vehicle Camera/recording Systems
North West Leicestershire District Council,31UH,Street Management,Environment Transport,ENOT,Keith Cook Training Services,A027792,22/03/2017,1341438,334.5,Training Expenses
North West Leicestershire District Council,31UH,Street Management,Environment Transport,ENOT,Transport Support Ltd,A041820,29/03/2017,1341524,675,Repairs - Parts
North West Leicestershire District Council,31UH,Street Management,Environment Transport,ENOT,Terberg Matec UK Limited,A001647,08/03/2017,1341802,625.42,Repairs - Parts
North West Leicestershire District Council,31UH,Leisure Centres,Hermitage Leisure Centre,HLC,Boditrax Technologies Limited,A043451,08/03/2017,1341826,5889,Computing
North West Leicestershire District Council,31UH,Property Services,Property Commercial Lettings,PROPCL,Pitney Bowes Finance Plc,A032630,15/03/2017,1341897,297.24,Equipment Operating Leases
North West Leicestershire District Council,31UH,Housing Repairs,HRA Housing Repairs & Maintenance,HRAHRM,Sturgis Snow & Astill LLP,A032635,22/03/2017,1341903,1250,Legal & Professional Services
North West Leicestershire District Council,31UH,Leisure Centres,Hermitage Leisure Centre,HLC,William Freer Ltd,A000639,08/03/2017,1341927,280,General Repairs
North West Leicestershire District Council,31UH,Leisure Centres,Hermitage Leisure Centre,HLC,Econoglaze Windows Limited,A043016,08/03/2017,1341973,324.78,General Repairs
North West Leicestershire District Council,31UH,Leisure & Culture,Cultural Services Arts & Events,CULTEV,Leicestershire County Council,A000950,15/03/2017,1341978,1300,Grants - East Midlands Arts
North West Leicestershire District Council,31UH,Leisure Centres,Hood Park Leisure Centre,HPLC,Leicestershire County Council,A027423,15/03/2017,1342002,539.84,Routine Ground Maintenance
North West Leicestershire District Council,31UH,Street Management,Environment Waste Management,ENOWM,Straight Plc,A024906,08/03/2017,1342021,12012,General Materials
North West Leicestershire District Council,31UH,Leisure Centres,Hood Park Leisure Centre,HPLC,Dura-Sport (Leisure Care) Ltd,A041815,08/03/2017,1342047,350,General Repairs
North West Leicestershire District Council,31UH,Street Management,Environment Transport,ENOT,Dennis Eagle Limited,A000522,08/03/2017,1342049,372.33,Repairs - Parts
North West Leicestershire District Council,31UH,Corporate Director,Human Resources,HR,Inchcape Fleet Solutions,A039405,08/03/2017,1342159,524.59,Items To Be Leased
North West Leicestershire District Council,31UH,Street Management,Environment Transport,ENOT,Electract Limited,A000548,08/03/2017,1342164,318,General Repairs
North West Leicestershire District Council,31UH,Street Management,Environment - Street Scene,ESS,Metric Group Ltd (Sales),A028996,08/03/2017,1342166,252,Subscriptions
North West Leicestershire District Council,31UH,Street Management,Environment Parks,ENOP,C V Lane & Son,A000922,08/03/2017,1342169,869,General Repairs
North West Leicestershire District Council,31UH,Information Technology,ICT Services,ICT,ACS Systems (UK) Ltd T/a ACS Office Solutions,A043447,08/03/2017,1342170,2840,Computing
North West Leicestershire District Council,31UH,Leisure Centres,Hermitage Leisure Centre,HLC,Gladstone MRM Ltd,A024642,08/03/2017,1342171,1115,Operational Equipment
North West Leicestershire District Council,31UH,Leisure Centres,Hermitage Bar & Catering,HLBC,Siemens Financial Services Ltd,A029510,08/03/2017,1342174,617.76,Equipment Operating Leases
North West Leicestershire District Council,31UH,Street Management,Environment Transport,ENOT,Westbury Industrial Supplies Limited,A009933,08/03/2017,1342175,421.39,Protective Clothing
North West Leicestershire District Council,31UH,Information Technology,ICT Services,ICT,Sec-1,A036989,08/03/2017,1342177,600,Training Expenses
North West Leicestershire District Council,31UH,Street Management,Environment Transport,ENOT,Westbury Industrial Supplies Limited,A009933,08/03/2017,1342179,285.6,Protective Clothing
North West Leicestershire District Council,31UH,Housing Repairs,HRA Housing Repairs & Maintenance,HRAHRM,HQN Ltd,A007983,08/03/2017,1342180,750,Training Expenses
North West Leicestershire District Council,31UH,Corporate Director,Human Resources,HR,Libby Carter Limited,A033121,08/03/2017,1342181,599.2,Interim Support
North West Leicestershire District Council,31UH,Communications,Corporate - Customer Services,CS,Neopost Finance Limited,A031590,08/03/2017,1342182,2552.28,Equipment Operating Leases
North West Leicestershire District Council,31UH,Information Technology,ICT Services,ICT,Berendsen Uk Ltd,A001600,08/03/2017,1342183,277.46,Protective Clothing
North West Leicestershire District Council,31UH,Street Management,Environment Transport,ENOT,Admiral Cleaning Supplies Ltd,A040930,15/03/2017,1342192,522.06,Cleaning & Domestic Equipment
North West Leicestershire District Council,31UH,Street Management,Environment - Street Scene,ESS,Aerosolicz Mobile Project,A043867,08/03/2017,1342198,300,Operational Equipment
North West Leicestershire District Council,31UH,Property Services,Property Facilities Management,PROPFM,Regarde Security Ltd,A013049,08/03/2017,1342200,448,Building Security
North West Leicestershire District Council,31UH,Property Services,Property Commercial Lettings,PROPCL,John Merison BMC Ltd,A001092,08/03/2017,1342203,1656.44,General Repairs
North West Leicestershire District Council,31UH,Legal and Support Services,Business Development Team,BDT,Act Now Training Ltd,A030708,08/03/2017,1342209,449,Training Expenses
North West Leicestershire District Council,31UH,Street Management,Environment - Street Scene,ESS,EPT SERVICES,A039764,15/03/2017,1342219,538.72,Green Footprints Exp
North West Leicestershire District Council,31UH,Finance,Exchequer Services,EXCH,Comensura Limited,A036958,08/03/2017,1342221,15677.19,Agency Staff
North West Leicestershire District Council,31UH,Housing Repairs,HRA Housing Repairs & Maintenance,HRAHRM,Leicestershire County Council,A000950,08/03/2017,1342222,438,Plumbing & Heating
North West Leicestershire District Council,31UH,Housing Repairs,HRA Housing Repairs & Maintenance,HRAHRM,Leicestershire County Council,A000950,08/03/2017,1342223,3226.51,Plumbing & Heating
North West Leicestershire District Council,31UH,Housing,HRA Performance & Business Support,HRAPBS,Alysium Consulting,A043813,22/03/2017,1342227,3135,Computing
North West Leicestershire District Council,31UH,Housing,HRA Performance & Business Support,HRAPBS,Hinckley & Bosworth Borough Council,A000770,22/03/2017,1342228,3863.4,Alarm System Telephones
North West Leicestershire District Council,31UH,Information Technology,ICT Services,ICT,Firmstep,A030931,08/03/2017,1342230,4281.25,Contract Payments (Other) Ext
North West Leicestershire District Council,31UH,Planning & Development,Environment Community Planning,ECP,Capita Business Services Ltd,A002968,05/04/2017,1342234,359,Training Expenses
North West Leicestershire District Council,31UH,Housing Repairs,HRA Housing Repairs & Maintenance,HRAHRM,Emperor Scaffolding Limited,A038405,08/03/2017,1342235,350,Hire Of Operational Equipment
North West Leicestershire District Council,31UH,Housing Repairs,HRA Housing Repairs & Maintenance,HRAHRM,Emperor Scaffolding Limited,A038405,08/03/2017,1342236,550,Hire Of Operational Equipment
North West Leicestershire District Council,31UH,Housing,HRA Performance & Business Support,HRAPBS,Michael Page International Recruitment Ltd,A041893,08/03/2017,1342243,3026,Agency Staff
North West Leicestershire District Council,31UH,Legal & Democratic,Legal Services,LDLS,LGG,A004729,08/03/2017,1342244,349,Training Expenses
North West Leicestershire District Council,31UH,Housing Repairs,HRA Housing Repairs & Maintenance,HRAHRM,Leicestershire County Council,A000950,08/03/2017,1342247,4865,Contract Payments (Dws) Ext
North West Leicestershire District Council,31UH,Housing Repairs,HRA Housing Repairs & Maintenance,HRAHRM,Laker BMS Ltd,A031787,08/03/2017,1342248,3195.95,Housing repairs
North West Leicestershire District Council,31UH,Housing Repairs,HRA Housing Repairs & Maintenance,HRAHRM,Laker BMS Ltd,A031787,08/03/2017,1342249,8477.68,Housing repairs
North West Leicestershire District Council,31UH,Housing Repairs,HRA Housing Repairs & Maintenance,HRAHRM,Laker BMS Ltd,A031787,08/03/2017,1342250,3963.59,Housing repairs
North West Leicestershire District Council,31UH,Housing Repairs,HRA Housing Repairs & Maintenance,HRAHRM,Laker BMS Ltd,A031787,08/03/2017,1342251,1595.2,Housing repairs
North West Leicestershire District Council,31UH,Housing Repairs,HRA Housing Repairs & Maintenance,HRAHRM,Laker BMS Ltd,A031787,08/03/2017,1342252,2723.77,Housing repairs
North West Leicestershire District Council,31UH,Housing Repairs,HRA Housing Repairs & Maintenance,HRAHRM,Laker BMS Ltd,A031787,08/03/2017,1342253,1604.94,Housing repairs
North West Leicestershire District Council,31UH,Housing Repairs,HRA Housing Repairs & Maintenance,HRAHRM,Laker BMS Ltd,A031787,08/03/2017,1342254,1742.25,Housing repairs
North West Leicestershire District Council,31UH,Housing Repairs,HRA Housing Repairs & Maintenance,HRAHRM,Laker BMS Ltd,A031787,08/03/2017,1342255,1240.55,Housing repairs
North West Leicestershire District Council,31UH,Housing Repairs,HRA Housing Repairs & Maintenance,HRAHRM,Laker BMS Ltd,A031787,08/03/2017,1342256,2869.88,Housing repairs
North West Leicestershire District Council,31UH,Housing Repairs,HRA Housing Repairs & Maintenance,HRAHRM,Laker BMS Ltd,A031787,08/03/2017,1342257,1005.44,Housing repairs
North West Leicestershire District Council,31UH,Housing Repairs,HRA Housing Repairs & Maintenance,HRAHRM,Laker BMS Ltd,A031787,08/03/2017,1342258,4719.5,Housing repairs
North West Leicestershire District Council,31UH,Housing Repairs,HRA Housing Repairs & Maintenance,HRAHRM,Sure Maintenance Ltd,A040460,08/03/2017,1342267,431.9,Plumbing & Heating
North West Leicestershire District Council,31UH,Housing Repairs,HRA Housing Repairs & Maintenance,HRAHRM,Sure Maintenance Ltd,A040460,08/03/2017,1342269,760,Plumbing & Heating
North West Leicestershire District Council,31UH,Housing Repairs,HRA Housing Repairs & Maintenance,HRAHRM,Sure Maintenance Ltd,A040460,08/03/2017,1342271,445,Plumbing & Heating
North West Leicestershire District Council,31UH,Housing Repairs,HRA Housing Repairs & Maintenance,HRAHRM,Orbis Property Protection Ltd,A028149,08/03/2017,1342272,720,Void Property Clearance Services
North West Leicestershire District Council,31UH,Housing Repairs,HRA Housing Repairs & Maintenance,HRAHRM,Aspect Contracts Limited,A041868,08/03/2017,1342292,370,Contract Payments (Dws) Ext
North West Leicestershire District Council,31UH,Housing Repairs,HRA Housing Repairs & Maintenance,HRAHRM,Aspect Contracts Limited,A041868,08/03/2017,1342293,6934,Contract Payments (Dws) Ext
North West Leicestershire District Council,31UH,Planning & Development,Environment - Development Control,EDC,Euro RSCG People T/A Havas People Ltd,A001395,08/03/2017,1342299,636.18,Advertising
North West Leicestershire District Council,31UH,Planning & Development,Environment - Development Control,EDC,Covergold Limited,A002296,08/03/2017,1342303,550,Office Expenses
North West Leicestershire District Council,31UH,Street Management,Environment Transport,ENOT,Certas Energy Uk Ltd,A043448,08/03/2017,1342306,491.19,Fuel
North West Leicestershire District Council,31UH,Street Management,Environment Transport,ENOT,Certas Energy Uk Ltd,A043448,08/03/2017,1342307,17158.95,Fuel
North West Leicestershire District Council,31UH,Leisure Centres,Hood Park Leisure Centre,HPLC,Sportsart Fitness UK Ltd,A041819,08/03/2017,1342309,4154.16,Machinery & Equipment
North West Leicestershire District Council,31UH,Leisure Centres,Hood Park Bar and Catering,HPBC,LWC - Birmingham,A039915,08/03/2017,1342313,424.1,Bar Provisions
North West Leicestershire District Council,31UH,Leisure Centres,Hood Park Leisure Centre,HPLC,J P Lennard Ltd,A000969,08/03/2017,1342315,295.05,Operational Equipment
North West Leicestershire District Council,31UH,Leisure Centres,Castle Donington Community College,CDCC,Elliott Group Limited,A005413,08/03/2017,1342327,472,Secure storage
North West Leicestershire District Council,31UH,Leisure Centres,Hermitage Leisure Centre,HLC,William Freer Ltd,A000639,08/03/2017,1342328,479.46,General Repairs
North West Leicestershire District Council,31UH,Property Services,Property Commercial Lettings,PROPCL,John Merison BMC Ltd,A001092,08/03/2017,1342330,5554.58,General Repairs
North West Leicestershire District Council,31UH,Housing Repairs,HRA Housing Repairs & Maintenance,HRAHRM,Michael Dyson Associates Ltd,A028431,08/03/2017,1342335,1344,Legal & Professional Services
North West Leicestershire District Council,31UH,Housing,HRA Housing Management,HRAHM,Michael Dyson Associates Ltd,A028431,08/03/2017,1342338,448,Place Based Envirnmental Improvements
North West Leicestershire District Council,31UH,Leisure & Culture,Cultural Services Arts & Events,CULTEV,Chameleon Pro Audio T/A Lux Technical Ltd,A027592,08/03/2017,1342340,4374.57,Event Expenditure
North West Leicestershire District Council,31UH,Housing Strategy,Community - Housing Strategy,HS,SJN Property Services,A039294,08/03/2017,1342342,475,Rent Deposit Scheme
North West Leicestershire District Council,31UH,Housing Repairs,HRA Housing Repairs & Maintenance,HRAHRM,Sure Maintenance Ltd,A040460,08/03/2017,1342344,19134.89,Servicing
North West Leicestershire District Council,31UH,Housing Repairs,HRA Housing Repairs & Maintenance,HRAHRM,Sure Maintenance Ltd,A040460,08/03/2017,1342345,750,Servicing
North West Leicestershire District Council,31UH,Housing Repairs,HRA Housing Repairs & Maintenance,HRAHRM,Sure Maintenance Ltd,A040460,08/03/2017,1342346,2090,Plumbing & Heating
North West Leicestershire District Council,31UH,Information Technology,ICT Services,ICT,British Telecommunications Plc,A000233,08/03/2017,1342349,583.56,General Repairs
North West Leicestershire District Council,31UH,Leisure Centres,Hermitage Bar & Catering,HLBC,Snackline Direct Ltd,A042489,08/03/2017,1342350,765.15,Catering Provisions
North West Leicestershire District Council,31UH,Leisure Centres,Hermitage Leisure Centre,HLC,Chameleon Pro Audio T/A Lux Technical Ltd,A027592,08/03/2017,1342351,617,Hospitality
North West Leicestershire District Council,31UH,Leisure Centres,Hermitage Bar & Catering,HLBC,Hopwells Frozen Foods Limited,A000783,08/03/2017,1342353,287.32,Catering Provisions
North West Leicestershire District Council,31UH,Leisure Centres,Hermitage Bar & Catering,HLBC,Hopwells Frozen Foods Limited,A000783,08/03/2017,1342354,314.91,Catering Provisions
North West Leicestershire District Council,31UH,Leisure Centres,Hermitage Bar & Catering,HLBC,Snackline Direct Ltd,A042489,08/03/2017,1342355,576.18,Bar Provisions
North West Leicestershire District Council,31UH,Property Services,Property Facilities Management,PROPFM,ACE Environmental Engineering Ltd,A040690,08/03/2017,1342356,262,Alt & Mtce-Fixed Plant
North West Leicestershire District Council,31UH,Housing,HRA Housing Management,HRAHM,ECO Skip Hire Ltd,A041559,08/03/2017,1342359,334,General Repairs
North West Leicestershire District Council,31UH,Planning & Development,Environment - Development Control,EDC,Euro RSCG People T/A Havas People Ltd,A001395,08/03/2017,1342360,664.18,Advertising
North West Leicestershire District Council,31UH,Planning & Development,Environment - Development Control,EDC,Euro RSCG People T/A Havas People Ltd,A001395,08/03/2017,1342361,753.89,Advertising
North West Leicestershire District Council,31UH,Planning & Development,Environment - Development Control,EDC,Euro RSCG People T/A Havas People Ltd,A001395,08/03/2017,1342362,499.51,Advertising
North West Leicestershire District Council,31UH,Planning & Development,Environment - Development Control,EDC,Euro RSCG People T/A Havas People Ltd,A001395,08/03/2017,1342363,907.31,Advertising
North West Leicestershire District Council,31UH,Finance,Housing Benefits,BENS,Morgan Hunt Public Sector Ltd,A033787,08/03/2017,1342385,867.84,Agency Staff
North West Leicestershire District Council,31UH,Finance,Financial Planning,FINPLA,Total Mobile,A025004,08/03/2017,1342386,33203.98,Computer Development
North West Leicestershire District Council,31UH,Legal & Democratic,Legal Services,LDLS,Dickinson & Rabbitte Ltd,A043766,08/03/2017,1342387,295,Insolvency Administration
North West Leicestershire District Council,31UH,Street Management,Environment Transport,ENOT,Electract Limited,A000548,08/03/2017,1342446,653,General Repairs
North West Leicestershire District Council,31UH,Planning & Development,Environment Planning Policy,EPP,Rothley House,A043750,22/03/2017,1342448,1200,Local Development Framework
North West Leicestershire District Council,31UH,Planning & Development,Environment Community Planning,ECP,Baydale Control Systems Ltd,A042565,08/03/2017,1342453,852,Maintenance Contract
North West Leicestershire District Council,31UH,Property Services,Property Facilities Management,PROPFM,LTT Vending Limited,A037981,08/03/2017,1342455,591.49,Catering Provisions
North West Leicestershire District Council,31UH,Street Management,Environment Waste Management,ENOWM,Hinckley & Bosworth Borough Council,A000770,08/03/2017,1342461,296.5,External Contractor Payments
North West Leicestershire District Council,31UH,Planning & Development,Environment - Town Centre/CCTV,ECCTV,Zurich Assurance Ltd,A038748,08/03/2017,1342462,273.28,Service Charges
North West Leicestershire District Council,31UH,Housing Repairs,HRA Housing Repairs & Maintenance,HRAHRM,Cresswell Property Surveys,A022373,08/03/2017,1342464,280,Legal & Professional Services
North West Leicestershire District Council,31UH,Housing Repairs,HRA Housing Repairs & Maintenance,HRAHRM,Cresswell Property Surveys,A022373,08/03/2017,1342465,560,Legal & Professional Services
North West Leicestershire District Council,31UH,Housing Repairs,HRA Housing Repairs & Maintenance,HRAHRM,Lovell Partnerships Ltd,A039973,08/03/2017,1342466,12072.96,Decent Homes
North West Leicestershire District Council,31UH,Street Management,Environment Transport,ENOT,R Massey & Son (Woodville) Ltd,A033258,08/03/2017,1342494,324.82,Repairs - Parts
North West Leicestershire District Council,31UH,Housing,HRA Performance & Business Support,HRAPBS,Michael Page International Recruitment Ltd,A041893,08/03/2017,1342506,1050,Agency Staff
North West Leicestershire District Council,31UH,Finance,Financial Planning,FINPLA,Arthur J Gallagher,A043882,08/03/2017,1342507,2500,Insurances
North West Leicestershire District Council,31UH,Housing Repairs,HRA Housing Repairs & Maintenance,HRAHRM,Laker BMS Ltd,A031787,08/03/2017,1342509,1825,Housing repairs
North West Leicestershire District Council,31UH,Housing Repairs,HRA Housing Repairs & Maintenance,HRAHRM,Sure Maintenance Ltd,A040460,08/03/2017,1342519,467.4,Plumbing & Heating
North West Leicestershire District Council,31UH,Housing Repairs,HRA Housing Repairs & Maintenance,HRAHRM,Sure Maintenance Ltd,A040460,08/03/2017,1342521,467.4,Plumbing & Heating
North West Leicestershire District Council,31UH,Housing Repairs,HRA Housing Repairs & Maintenance,HRAHRM,Sure Maintenance Ltd,A040460,08/03/2017,1342544,366.26,Plumbing & Heating
North West Leicestershire District Council,31UH,Housing Repairs,HRA Housing Repairs & Maintenance,HRAHRM,Sure Maintenance Ltd,A040460,08/03/2017,1342545,580.55,Plumbing & Heating
North West Leicestershire District Council,31UH,Environmental Health,Environmental Health & Licensing,EEHL,Eville And Jones Limited,A033670,15/03/2017,1342548,675.35,Vet Inspection
North West Leicestershire District Council,31UH,Street Management,Environment Transport,ENOT,J F Lloyd & Sons,A000991,08/03/2017,1342549,300,Hire Of Operational Equipment
North West Leicestershire District Council,31UH,Property Services,Property Commercial Lettings,PROPCL,Purchase Power,A008204,08/03/2017,1342550,2020,Postages
North West Leicestershire District Council,31UH,Planning & Development,Environment - Development Control,EDC,Valuation Office Agency,A034291,08/03/2017,1342551,1029,External Legal Fees & Advice
North West Leicestershire District Council,31UH,Leisure & Culture,Cultural Services TIC,CULTIC,Ashby Dramatic Society Trust,A027431,08/03/2017,1342552,270,Theatre Tickets
North West Leicestershire District Council,31UH,Street Management,Environment - Street Scene,ESS,Severn Trent Water Limited,A001468,08/03/2017,1342555,533.55,Sewerage & Environmental
North West Leicestershire District Council,31UH,Planning & Development,Environment - Town Centre/CCTV,ECCTV,Severn Trent Water Limited,A001468,08/03/2017,1342556,441.62,Water Charges (Metered)
North West Leicestershire District Council,31UH,Planning & Development,Environment Planning Policy,EPP,Carmel Edwards T/A CP Solutions,A043365,08/03/2017,1342557,650,Local Development Framework
North West Leicestershire District Council,31UH,Street Management,Environment Transport,ENOT,Spaldings (UK) Limited,A001540,08/03/2017,1342559,257.68,Repairs - Parts
North West Leicestershire District Council,31UH,Housing Repairs,HRA Housing Repairs & Maintenance,HRAHRM,Collective Enterprises Ltd,A036453,07/03/2017,1342565,34250.9,General Materials
North West Leicestershire District Council,31UH,Housing Repairs,HRA Housing Repairs & Maintenance,HRAHRM,Collective Enterprises Ltd,A036453,07/03/2017,1342566,58180.52,General Materials
North West Leicestershire District Council,31UH,Housing Repairs,HRA Housing Repairs & Maintenance,HRAHRM,Collective Enterprises Ltd,A036453,07/03/2017,1342567,36381.56,General Materials
North West Leicestershire District Council,31UH,Housing Repairs,HRA Housing Repairs & Maintenance,HRAHRM,Collective Enterprises Ltd,A036453,07/03/2017,1342568,58430.8,General Materials
North West Leicestershire District Council,31UH,Corporate Director,Human Resources,HR,The Disclosure & Barring Service,A027625,07/03/2017,1342569,484,Criminal Records Bureau
North West Leicestershire District Council,31UH,Finance,Exchequer Services,EXCH,British Gas,A042590,08/03/2017,1342570,7604.86,Electricity
North West Leicestershire District Council,31UH,Finance,Exchequer Services,EXCH,British Gas,A042590,08/03/2017,1342571,324.75,Electricity
North West Leicestershire District Council,31UH,Finance,Exchequer Services,EXCH,British Gas,A042590,08/03/2017,1342572,301.47,Electricity
North West Leicestershire District Council,31UH,Housing Repairs,HRA Housing Repairs & Maintenance,HRAHRM,Collective Enterprises Ltd,A036453,07/03/2017,1342573,57316.79,General Materials
North West Leicestershire District Council,31UH,Housing Repairs,HRA Housing Repairs & Maintenance,HRAHRM,Laker BMS Ltd,A031787,08/03/2017,1342575,13089.55,Housing repairs
North West Leicestershire District Council,31UH,Housing,HRA Housing Management,HRAHM,Redacted- Personal Data,A043883,08/03/2017,1342577,250,Under Occupancy Incentives
North West Leicestershire District Council,31UH,Housing,HRA Housing Management,HRAHM,Redacted- Personal Data,A043884,08/03/2017,1342578,250,Under Occupancy Incentives
North West Leicestershire District Council,31UH,Housing,HRA Housing Management,HRAHM,Redacted- Personal Data,A043885,08/03/2017,1342579,250,Under Occupancy Incentives
North West Leicestershire District Council,31UH,Housing,HRA Housing Management,HRAHM,Leicestershire County Council,A000950,08/03/2017,1342581,6468.23,Contract Cleaning
North West Leicestershire District Council,31UH,Housing Repairs,HRA Housing Repairs & Maintenance,HRAHRM,G Purchase Construction Ltd,A032830,08/03/2017,1342585,576.79,Housing repairs
North West Leicestershire District Council,31UH,Housing Repairs,HRA Housing Repairs & Maintenance,HRAHRM,G Purchase Construction Ltd,A032830,08/03/2017,1342586,752.11,Housing repairs
North West Leicestershire District Council,31UH,Corporate Director,Human Resources,HR,PES Limited,A035521,08/03/2017,1342587,6004,Child Care Vouchers
North West Leicestershire District Council,31UH,Information Technology,ICT Services,ICT,Ashby Dramatic Society,A021686,08/03/2017,1342588,3585.56,Ticket Sales
North West Leicestershire District Council,31UH,Street Management,Environment - Street Scene,ESS,TRL,A036596,15/03/2017,1342591,9692.62,Air Quality Strategy
North West Leicestershire District Council,31UH,Communications,Corporate - Customer Services,CS,Neopost Limited,A000079,15/03/2017,1342595,3000,Postages
North West Leicestershire District Council,31UH,Street Management,Environment - Street Scene,ESS,Pegg Print (L G Pegg),A001291,15/03/2017,1342596,595,Stationery
North West Leicestershire District Council,31UH,Street Management,Environment Transport,ENOT,Taylor Engineering & Fabrications Ltd,A036178,17/05/2017,1342597,262.73,Repairs - Parts
North West Leicestershire District Council,31UH,Planning & Development,Environment Community Planning,ECP,Leicestershire County Council,A000950,15/03/2017,1342598,2500,Community Safety
North West Leicestershire District Council,31UH,Property Services,Property Commercial Lettings,PROPCL,John Merison BMC Ltd,A001092,15/03/2017,1342608,270.43,General Repairs
North West Leicestershire District Council,31UH,Neighbourhoods & Communities,N & C Neighbourhoods,NACN,Long Whatton & Diseworth PC,A001010,15/03/2017,1342631,500,Green Footprints Exp
North West Leicestershire District Council,31UH,Housing Repairs,HRA Housing Repairs & Maintenance,HRAHRM,Kier Services Maintenance East Ltd,A039980,15/03/2017,1342633,3882.37,Decent Homes
North West Leicestershire District Council,31UH,Housing,HRA Housing Management,HRAHM,MRC Community Action,A001208,15/03/2017,1342648,292,Training Expenses
North West Leicestershire District Council,31UH,Information Technology,ICT Services,ICT,Virgin Media Business,A008908,15/03/2017,1342649,2905.21,Admin Equipment - Maintenance
North West Leicestershire District Council,31UH,Information Technology,ICT Services,ICT,Virgin Media Business,A035373,15/03/2017,1342651,313.53,Computing
North West Leicestershire District Council,31UH,Housing,HRA Housing Management,HRAHM,Severn Trent Water Limited,A001468,15/03/2017,1342652,1292.73,Water Charges (Metered)
North West Leicestershire District Council,31UH,Housing,HRA Older Persons Service,HRAOPS,Tunstall Healthcare (UK) Limited,A001701,15/03/2017,1342653,2560,Alarm System Telephones
North West Leicestershire District Council,31UH,Finance,Exchequer Services,EXCH,Comensura Limited,A036958,15/03/2017,1342654,26710.52,Agency Staff
North West Leicestershire District Council,31UH,Property Services,Property Facilities Management,PROPFM,Calbarrie Ltd,A021932,15/03/2017,1342671,937,PAT Testing
North West Leicestershire District Council,31UH,Finance,Financial Planning,FINPLA,The Office of the Police and Crime Commissioner for Leicestershire,A007096,09/03/2017,1342678,583902.17,Precept
North West Leicestershire District Council,31UH,Finance,Financial Planning,FINPLA,"Leicester, Leicestershire & Rutland Fire Authority",A028339,09/03/2017,1342679,195995,Precept
North West Leicestershire District Council,31UH,Finance,Financial Planning,FINPLA,Department for Communities & Local Government,A028518,09/03/2017,1342680,1900366,Subsidy Receipts & Repayments
North West Leicestershire District Council,31UH,Finance,Financial Planning,FINPLA,Public Works Loan Board,A001340,09/03/2017,1342681,530495.89,Policy Lending
North West Leicestershire District Council,31UH,Finance,Financial Planning,FINPLA,Public Works Loan Board,A001340,09/03/2017,1342682,98087.3,Policy Lending
North West Leicestershire District Council,31UH,Finance,Financial Planning,FINPLA,Public Works Loan Board,A001340,09/03/2017,1342683,1000000,Policy Lending
North West Leicestershire District Council,31UH,Finance,Exchequer Services,EXCH,H M Land Registry,A000713,09/03/2017,1342684,680,Land Registry Search Fees
North West Leicestershire District Council,31UH,Finance,Exchequer Services,EXCH,ESPO,A000958,09/03/2017,1342685,8896.15,Gas
North West Leicestershire District Council,31UH,Finance,Financial Planning,FINPLA,Leicestershire County Council,A000950,09/03/2017,1342686,1755846,County Precept
North West Leicestershire District Council,31UH,Finance,Financial Planning,FINPLA,Leicestershire County Council,A000950,09/03/2017,1342687,3582700,County Precept
North West Leicestershire District Council,31UH,Housing,HRA Housing Management,HRAHM,HMCTS,A033955,09/03/2017,1342689,1950,Legal & Professional Services
North West Leicestershire District Council,31UH,Planning & Development,Environment Planning Policy,EPP,Edwards & Edwards Consultancy Ltd,A041694,15/03/2017,1342690,2250,Local Development Framework
North West Leicestershire District Council,31UH,Housing Repairs,HRA Housing Repairs & Maintenance,HRAHRM,G Purchase Construction Ltd,A032830,09/03/2017,1342701,20238.65,Housing repairs
North West Leicestershire District Council,31UH,Street Management,Environment Waste Management,ENOWM,Westbury Industrial Supplies Limited,A009933,22/03/2017,1342703,287.81,Protective Clothing
North West Leicestershire District Council,31UH,Street Management,Environment Transport,ENOT,Westbury Industrial Supplies Limited,A009933,15/03/2017,1342704,801.28,Protective Clothing
North West Leicestershire District Council,31UH,Chief Exec,Chief Executive,CHEX,"Alkiki Community Interest Company 	",A043035,31/03/2017,1342708,16621.05,Urban Design/Our Place
North West Leicestershire District Council,31UH,Street Management,Environment Transport,ENOT,Post Office Limited,A008559,15/03/2017,1342709,10351.5,Licences - Road Fund Licence
North West Leicestershire District Council,31UH,Planning & Development,Environment Planning Policy,EPP,AECOM Limited,A037801,15/03/2017,1342711,4943.75,Consultants Fees
North West Leicestershire District Council,31UH,Street Management,Environment Transport,ENOT,Kovacs Limited,A000906,15/03/2017,1342721,353.2,Repairs - Parts
North West Leicestershire District Council,31UH,Leisure & Culture,Sport & Physical Activity,SPA,Grace Dieu Netball Club,A043889,15/03/2017,1342726,250,Grants
North West Leicestershire District Council,31UH,Leisure & Culture,Sport & Physical Activity,SPA,Measham Leisure Centre,A027454,15/03/2017,1342728,250,Grants
North West Leicestershire District Council,31UH,Environmental Health,Environmental Services,EES,College Garth Boarding Kennels,A000385,15/03/2017,1342729,2275,Stray Dog Service
North West Leicestershire District Council,31UH,Street Management,Environment Transport,ENOT,Johnston Sweepers Ltd,A039355,15/03/2017,1342735,524.5,Repairs - Parts
North West Leicestershire District Council,31UH,Communications,Corporate - Customer Services,CS,Neopost Limited,A000079,15/03/2017,1342739,2000,Postages
North West Leicestershire District Council,31UH,Leisure Centres,Hood Park Leisure Centre,HPLC,William Freer Ltd,A000639,15/03/2017,1342744,286.48,General Repairs
North West Leicestershire District Council,31UH,Leisure Centres,Hood Park Leisure Centre,HPLC,Admiral Cleaning Supplies Ltd,A040930,15/03/2017,1342746,849.3,Consumable Cleaning Materials/Hygiene
North West Leicestershire District Council,31UH,Leisure Centres,Hermitage Leisure Centre,HLC,Measham Leisure Centre,A027454,15/03/2017,1342754,541.66,Measham LC Lifestyle DD
North West Leicestershire District Council,31UH,Leisure Centres,Castle Donington Community College,CDCC,Castle Donington College,A000302,15/03/2017,1342755,6087,Agency Staff
North West Leicestershire District Council,31UH,Leisure Centres,Hood Park Leisure Centre,HPLC,LWC - Birmingham,A039915,15/03/2017,1342757,1167.54,Catering Provisions
North West Leicestershire District Council,31UH,Leisure Centres,Hermitage Bar & Catering,HLBC,Catering Services (Supplies) Ltd,A000310,15/03/2017,1342758,271.84,Catering Provisions
North West Leicestershire District Council,31UH,Leisure Centres,Hood Park Leisure Centre,HPLC,Dura-Sport (Leisure Care) Ltd,A016357,15/03/2017,1342760,970,Routine Ground Maintenance
North West Leicestershire District Council,31UH,Leisure Centres,Hermitage Bar & Catering,HLBC,LWC - Birmingham,A039915,15/03/2017,1342766,471.45,Bar Provisions
North West Leicestershire District Council,31UH,Leisure Centres,Hermitage Leisure Centre,HLC,JB Tool Hire Ltd,A011490,15/03/2017,1342768,272.04,Operational Equipment
North West Leicestershire District Council,31UH,Housing Repairs,HRA Housing Repairs & Maintenance,HRAHRM,Kier Services Maintenance East Ltd,A039980,15/03/2017,1342773,48806.96,Decent Homes
North West Leicestershire District Council,31UH,Information Technology,ICT Services,ICT,Premier Paper Group,A042438,15/03/2017,1342774,527.5,Consumable Materials
North West Leicestershire District Council,31UH,Leisure & Culture,Sport & Physical Activity,SPA,Redacted- Personal Data,A042974,15/03/2017,1342777,433.48,FAME classes
North West Leicestershire District Council,31UH,Housing Repairs,HRA Housing Repairs & Maintenance,HRAHRM,Lovell Partnerships Ltd,A039973,15/03/2017,1342778,224812.24,Decent Homes
North West Leicestershire District Council,31UH,Street Management,Environment Transport,ENOT,Freight Transport Association,A027981,15/03/2017,1342781,260,Subscriptions
North West Leicestershire District Council,31UH,Street Management,Environment Transport,ENOT,Ford & Slater Group Ltd,A000625,15/03/2017,1342782,460.85,Scheduled Servicing - Parts
North West Leicestershire District Council,31UH,Street Management,Environment Transport,ENOT,R Massey & Son (Woodville) Ltd,A033258,15/03/2017,1342783,401.04,Repairs - Parts
North West Leicestershire District Council,31UH,Housing,HRA Performance & Business Support,HRAPBS,ConsultCIH Limited,A038715,31/03/2017,1342784,3026.95,Legal & Professional Services
North West Leicestershire District Council,31UH,Neighbourhoods & Communities,N & C Neighbourhoods,NACN,Swepstone Church Hall,A034559,15/03/2017,1342785,500,Green Footprints Exp
North West Leicestershire District Council,31UH,Leisure Centres,Hermitage Bar & Catering,HLBC,Hopwells Frozen Foods Limited,A000783,15/03/2017,1342788,254.6,Catering Provisions
North West Leicestershire District Council,31UH,Leisure Centres,Hood Park Bar and Catering,HPBC,Snackline Direct Ltd,A042489,15/03/2017,1342790,724.25,Vending Machine Provisions
North West Leicestershire District Council,31UH,Legal & Democratic,Legal Services,LDLS,Sweet & Maxwell Ltd,A001611,15/03/2017,1342793,5618,Books & Publications
North West Leicestershire District Council,31UH,Chief Exec,Chief Executive,CHEX,Sable Leigh Consultancy Ltd T/A SLC Rail,A042727,15/03/2017,1342794,3597.4,External Legal Fees & Advice
North West Leicestershire District Council,31UH,Housing Repairs,HRA Housing Repairs & Maintenance,HRAHRM,Orbis Property Protection Ltd,A028149,15/03/2017,1342796,325,Void Property Clearance Services
North West Leicestershire District Council,31UH,Housing Repairs,HRA Housing Repairs & Maintenance,HRAHRM,Aspect Contracts Limited,A041868,15/03/2017,1342803,370,Contract Payments (Dws) Ext
North West Leicestershire District Council,31UH,Housing Repairs,HRA Housing Repairs & Maintenance,HRAHRM,Aspect Contracts Limited,A041868,15/03/2017,1342804,2270,Contract Payments (Dws) Ext
North West Leicestershire District Council,31UH,Housing Repairs,HRA Housing Repairs & Maintenance,HRAHRM,G Purchase Construction Ltd,A032830,15/03/2017,1342805,1903.8,Housing repairs
North West Leicestershire District Council,31UH,Housing Repairs,HRA Housing Repairs & Maintenance,HRAHRM,G Purchase Construction Ltd,A032830,15/03/2017,1342806,1004.68,Housing repairs
North West Leicestershire District Council,31UH,Housing Repairs,HRA Housing Repairs & Maintenance,HRAHRM,G Purchase Construction Ltd,A032830,15/03/2017,1342807,1509.09,Housing repairs
North West Leicestershire District Council,31UH,Housing Repairs,HRA Housing Repairs & Maintenance,HRAHRM,G Purchase Construction Ltd,A032830,15/03/2017,1342808,983.36,Housing repairs
North West Leicestershire District Council,31UH,Street Management,Environment Parks,ENOP,Tudor UK Ltd  (trading as Tudor Environmental),A043777,15/03/2017,1342809,2050.82,Operational Equipment
North West Leicestershire District Council,31UH,Street Management,Environment General Technician,ENOGT,Leicestershire County Council,A028430,15/03/2017,1342815,432.48,Routine Ground Maintenance
North West Leicestershire District Council,31UH,Street Management,Environment Parks,ENOP,Buxton's Ltd,A029426,29/03/2017,1342818,397.01,Operational Equipment - Purchases
North West Leicestershire District Council,31UH,Leisure Centres,Hood Park Leisure Centre,HPLC,Dura-Sport (Leisure Care) Ltd,A041815,22/03/2017,1342819,280,General Repairs
North West Leicestershire District Council,31UH,Legal & Democratic,Legal Services,LDLS,Marrons Shakespeares,A041538,15/03/2017,1342825,3190,External Legal Fees & Advice
North West Leicestershire District Council,31UH,Planning & Development,Environment Planning Policy,EPP,Jon Etchells Consulting Ltd,A029305,15/03/2017,1342858,795,External Legal Fees & Advice
North West Leicestershire District Council,31UH,Planning & Development,Environment Planning Policy,EPP,Leicestershire County Council,A000950,15/03/2017,1342859,10000,Consultants Fees
North West Leicestershire District Council,31UH,Planning & Development,Environment Planning Policy,EPP,Leicestershire County Council,A000950,15/03/2017,1342863,5715,Consultants Fees
North West Leicestershire District Council,31UH,Legal and Support Services,Business Focus Group,BFG,The National Forest Company,A027538,31/03/2017,1342868,20000,Growth Support Contribution
North West Leicestershire District Council,31UH,Environmental Health,Environmental Health & Licensing,EEHL,Euro RSCG People T/A Havas People Ltd,A001395,22/03/2017,1342869,928.4,Employee Advertising
North West Leicestershire District Council,31UH,Housing,HRA Performance & Business Support,HRAPBS,Michael Page International Recruitment Ltd,A041893,15/03/2017,1342870,1750,Agency Staff
North West Leicestershire District Council,31UH,Housing,HRA Performance & Business Support,HRAPBS,Michael Page International Recruitment Ltd,A041893,15/03/2017,1342871,2856,Agency Staff
North West Leicestershire District Council,31UH,Street Management,Environment - Street Scene,ESS,Bemrose Booth,A029332,,1342890,255,Stationery
North West Leicestershire District Council,31UH,Street Management,Environment Waste Management,ENOWM,Straight Plc,A024906,15/03/2017,1342891,710,General Materials
North West Leicestershire District Council,31UH,Street Management,Environment Parks,ENOP,Glen Farrow Uk Limited,A000672,22/03/2017,1342896,640,General Repairs
North West Leicestershire District Council,31UH,Legal and Support Services,Business Development Team,BDT,Deana Wildgoose - The Hero Project,A043851,15/03/2017,1342898,8252.6,Consultants Fees
North West Leicestershire District Council,31UH,Legal and Support Services,Business Development Team,BDT,Coventry City Council,A043735,15/03/2017,1342899,450,Consultants Fees
North West Leicestershire District Council,31UH,Legal and Support Services,Business Development Team,BDT,Julia Burkin,A043213,15/03/2017,1342900,1901.68,Consultants Fees
North West Leicestershire District Council,31UH,Housing,HRA Housing Management,HRAHM,Michael Dyson Associates Ltd,A028431,15/03/2017,1342901,784,Legal & Professional Services
North West Leicestershire District Council,31UH,Housing,HRA Housing Management,HRAHM,Michael Dyson Associates Ltd,A028431,15/03/2017,1342902,1176,Legal & Professional Services
North West Leicestershire District Council,31UH,Neighbourhoods & Communities,N & C Neighbourhoods,NACN,PACT,A043891,15/03/2017,1342903,2000,Sponsorship
North West Leicestershire District Council,31UH,Housing Strategy,Community - Housing Strategy,HS,EMH Housing and Regeneration Limited,A043364,15/03/2017,1342907,715,Energy Performance Certificates
North West Leicestershire District Council,31UH,Housing Strategy,Community - Housing Strategy,HS,EMH Housing and Regeneration Limited,A043364,15/03/2017,1342908,325,Energy Performance Certificates
North West Leicestershire District Council,31UH,Finance,Financial Planning,FINPLA,Faithful+Gould Ltd,A041209,15/03/2017,1342909,14129.75,Consultants Fees
North West Leicestershire District Council,31UH,Finance,Financial Planning,FINPLA,KPMG LLP,A035156,15/03/2017,1342910,16426.5,External Audit Fees
North West Leicestershire District Council,31UH,Property Services,Property Facilities Management,PROPFM,Geze Uk Limited,A023130,15/03/2017,1342911,315,Door Inspections
North West Leicestershire District Council,31UH,Chief Exec,Chief Executive,CHEX,GL Hearn,A041191,15/03/2017,1342916,21167.2,Consultants Fees
North West Leicestershire District Council,31UH,Property Services,Property Commercial Lettings,PROPCL,British Telecommunications Plc,A000233,15/03/2017,1342920,597.2,Telephones
North West Leicestershire District Council,31UH,Street Management,Environment Parks,ENOP,C V Lane & Son,A000922,15/03/2017,1342923,869,General Repairs
North West Leicestershire District Council,31UH,Leisure Centres,Hermitage Bar & Catering,HLBC,LWC - Birmingham,A039915,22/03/2017,1342928,575.89,Bar Provisions
North West Leicestershire District Council,31UH,Street Management,Environment General Technician,ENOGT,Commutaports Ltd,A000389,22/03/2017,1342936,290,Street Furniture
North West Leicestershire District Council,31UH,Street Management,Environment Transport,ENOT,Keith Cook Training Services,A027792,22/03/2017,1342939,652,Training Expenses
North West Leicestershire District Council,31UH,Property Services,Property Commercial Lettings,PROPCL,John Merison BMC Ltd,A001092,22/03/2017,1342940,493.09,General Repairs
North West Leicestershire District Council,31UH,Finance,Exchequer Services,EXCH,Comensura Limited,A036958,22/03/2017,1342941,31573.19,Agency Staff
North West Leicestershire District Council,31UH,Housing,HRA Housing Management,HRAHM,Cirrus Research,A042935,22/03/2017,1342942,388,Legal & Professional Services
North West Leicestershire District Council,31UH,Street Management,Environment Transport,ENOT,QPS Plastics Ltd,A001342,22/03/2017,1342943,299.75,Non Scheduled Maintenance - Parts
North West Leicestershire District Council,31UH,Information Technology,ICT Services,ICT,Centreprise International Ltd,A043431,22/03/2017,1342948,755,Data Transfer
North West Leicestershire District Council,31UH,Property Services,Property Commercial Lettings,PROPCL,Coalville Cleaning Services,A003037,22/03/2017,1342951,266.3,Consumable Cleaning Materials/Hygiene
North West Leicestershire District Council,31UH,Housing Repairs,HRA Housing Repairs & Maintenance,HRAHRM,Alliance Contracting Solutions Ltd,A043325,22/03/2017,1342952,51128.15,Place Based Envirnmental Improvements
North West Leicestershire District Council,31UH,Housing Repairs,HRA Housing Repairs & Maintenance,HRAHRM,Kier Services Maintenance East Ltd,A039980,22/03/2017,1342953,12281.05,Decent Homes
North West Leicestershire District Council,31UH,Housing Repairs,HRA Housing Repairs & Maintenance,HRAHRM,Emperor Scaffolding Limited,A038405,22/03/2017,1342954,375,Hire Of Operational Equipment
North West Leicestershire District Council,31UH,Housing Repairs,HRA Housing Repairs & Maintenance,HRAHRM,Emperor Scaffolding Limited,A038405,22/03/2017,1342955,500,Hire Of Operational Equipment
North West Leicestershire District Council,31UH,Housing Repairs,HRA Housing Repairs & Maintenance,HRAHRM,Emperor Scaffolding Limited,A038405,22/03/2017,1342956,400,Hire Of Operational Equipment
North West Leicestershire District Council,31UH,Information Technology,ICT Services,ICT,Freedom Communications (UK) Ltd,A032826,22/03/2017,1342957,1544.32,Admin Equipment - Maintenance
North West Leicestershire District Council,31UH,Leisure Centres,Hermitage Leisure Centre,HLC,Rossells,A001412,29/03/2017,1342958,379.5,General Repairs
North West Leicestershire District Council,31UH,Legal & Democratic,Legal Services,LDLS,Sweet & Maxwell Ltd,A001611,22/03/2017,1342961,3896,Books & Publications
North West Leicestershire District Council,31UH,Legal & Democratic,Legal Services,LDLS,Mr Timothy Leader,A041711,22/03/2017,1342962,750,Legal & Professional Services
North West Leicestershire District Council,31UH,Leisure Centres,Hermitage Bar & Catering,HLBC,Snackline Direct Ltd,A042489,22/03/2017,1342964,700.08,Catering Provisions
North West Leicestershire District Council,31UH,Leisure Centres,Hermitage Leisure Centre,HLC,Severn Trent Water Limited,A001468,22/03/2017,1342965,2179.04,Water Charges (Metered)
North West Leicestershire District Council,31UH,Leisure & Culture,Cultural Services Arts & Events,CULTEV,Coalville Times Ltd,A000374,31/03/2017,1342969,1116,Advertising
North West Leicestershire District Council,31UH,Planning & Development,Environment - Development Control,EDC,ESPO,A000958,22/03/2017,1342972,1407,Operational Equipment
North West Leicestershire District Council,31UH,Street Management,Environment - Street Scene,ESS,Martin Cranfield Associates Limited,A043847,22/03/2017,1342976,348.8,Fees & Charges
North West Leicestershire District Council,31UH,Street Management,Environment - Street Scene,ESS,S & J Electrical,A040708,22/03/2017,1342977,4525,General Repairs
North West Leicestershire District Council,31UH,Street Management,Environment - Street Scene,ESS,Apse,A018837,22/03/2017,1342979,350,Training Courses (Organised)
North West Leicestershire District Council,31UH,Corporate Director,Human Resources,HR,4imprint Direct Limited,A033612,22/03/2017,1342980,806.85,Corporate Training
North West Leicestershire District Council,31UH,Housing,HRA Housing Management,HRAHM,M3 Housing Limited,A032953,22/03/2017,1342981,4068,Computing
North West Leicestershire District Council,31UH,Neighbourhoods & Communities,N & C Neighbourhoods,NACN,Sew Essential Ltd,A039686,22/03/2017,1342983,5500,Grants
North West Leicestershire District Council,31UH,Housing Repairs,HRA Housing Repairs & Maintenance,HRAHRM,G Purchase Construction Ltd,A032830,22/03/2017,1343007,354.07,Housing repairs
North West Leicestershire District Council,31UH,Housing Repairs,HRA Housing Repairs & Maintenance,HRAHRM,G Purchase Construction Ltd,A032830,22/03/2017,1343009,292.58,Housing repairs
North West Leicestershire District Council,31UH,Housing Repairs,HRA Housing Repairs & Maintenance,HRAHRM,G Purchase Construction Ltd,A032830,22/03/2017,1343012,351.98,Housing repairs
North West Leicestershire District Council,31UH,Housing Repairs,HRA Housing Repairs & Maintenance,HRAHRM,G Purchase Construction Ltd,A032830,22/03/2017,1343013,314.94,Housing repairs
North West Leicestershire District Council,31UH,Housing Repairs,HRA Housing Repairs & Maintenance,HRAHRM,G Purchase Construction Ltd,A032830,22/03/2017,1343021,2481.39,Housing repairs
North West Leicestershire District Council,31UH,Housing Repairs,HRA Housing Repairs & Maintenance,HRAHRM,G Purchase Construction Ltd,A032830,22/03/2017,1343023,1798.1,Housing repairs
North West Leicestershire District Council,31UH,Housing Repairs,HRA Housing Repairs & Maintenance,HRAHRM,G Purchase Construction Ltd,A032830,22/03/2017,1343029,441.73,Housing repairs
North West Leicestershire District Council,31UH,Housing Repairs,HRA Housing Repairs & Maintenance,HRAHRM,G Purchase Construction Ltd,A032830,22/03/2017,1343036,336.7,Housing repairs
North West Leicestershire District Council,31UH,Housing Repairs,HRA Housing Repairs & Maintenance,HRAHRM,G Purchase Construction Ltd,A032830,22/03/2017,1343046,747.31,General Repairs
North West Leicestershire District Council,31UH,Housing Repairs,HRA Housing Repairs & Maintenance,HRAHRM,G Purchase Construction Ltd,A032830,22/03/2017,1343057,1100.31,Housing repairs
North West Leicestershire District Council,31UH,Information Technology,ICT Services,ICT,Phoenix Software Limited,A001298,22/03/2017,1343060,411.62,Operational Equipment
North West Leicestershire District Council,31UH,Street Management,Environment Parks,ENOP,OMS,A043771,22/03/2017,1343062,255,Asset Protection
North West Leicestershire District Council,31UH,Planning & Development,Environment Community Planning,ECP,Maggie's Tea Party,A042072,22/03/2017,1343064,316,Event Expenditure
North West Leicestershire District Council,31UH,Leisure Centres,Hermitage Leisure Centre,HLC,Sound Dynamics LT,A043017,22/03/2017,1343074,394.98,Operational Equipment
North West Leicestershire District Council,31UH,Leisure Centres,Hood Park Bar and Catering,HPBC,Snackline Direct Ltd,A042489,22/03/2017,1343077,386.85,Vending Machine Provisions
North West Leicestershire District Council,31UH,Street Management,Environment - Street Scene,ESS,4 Planning Delivers Ltd,A043779,22/03/2017,1343087,1136,Consultants Fees
North West Leicestershire District Council,31UH,Leisure & Culture,Cultural Services Arts & Events,CULTEV,Crocker Brothers Limited,A038388,31/03/2017,1343089,595.07,Event Expenditure
North West Leicestershire District Council,31UH,Information Technology,ICT Services,ICT,Virgin Media Business,A035373,22/03/2017,1343099,711.49,Telephone Charge / Rental
North West Leicestershire District Council,31UH,Information Technology,ICT Services,ICT,British Telecommunications Plc,A000233,22/03/2017,1343100,1383.82,Admin Equipment - Hire/Rental
North West Leicestershire District Council,31UH,Housing Repairs,HRA Housing Repairs & Maintenance,HRAHRM,Bramble.cc Limited,A036895,22/03/2017,1343110,12268.39,Computing
North West Leicestershire District Council,31UH,Environmental Health,Environmental Health & Licensing,EEHL,Mega Arumugam,A043638,29/03/2017,1343112,350,Training Courses (Organised)
North West Leicestershire District Council,31UH,Property Services,Property Facilities Management,PROPFM,Fire Proof Ltd,A039911,22/03/2017,1343114,1900,General Repairs
North West Leicestershire District Council,31UH,Property Services,Property Commercial Lettings,PROPCL,John Merison BMC Ltd,A001092,22/03/2017,1343115,776.37,General Repairs
North West Leicestershire District Council,31UH,Property Services,Property Commercial Lettings,PROPCL,John Merison BMC Ltd,A001092,22/03/2017,1343116,373.28,General Repairs
North West Leicestershire District Council,31UH,Property Services,Property Facilities Management,PROPFM,Regarde Security Ltd,A013049,22/03/2017,1343118,496,Building Security
North West Leicestershire District Council,31UH,Communications,Corporate - Customer Services,CS,Neopost Limited,A000079,22/03/2017,1343126,3000,Postages
North West Leicestershire District Council,31UH,Legal & Democratic,Electoral & Land Charges,LDELC,Twofold Ltd,A041261,22/03/2017,1343127,368.2,Equipment Maintenance
North West Leicestershire District Council,31UH,Legal & Democratic,Electoral & Land Charges,LDELC,Twofold Ltd,A041261,22/03/2017,1343129,368.2,Equipment Maintenance
North West Leicestershire District Council,31UH,Legal & Democratic,Member Services,LDMS,Redacted- Personal Data,A043903,22/03/2017,1343135,500,Retirement and long service awards
North West Leicestershire District Council,31UH,Information Technology,ICT Services,ICT,Orange Plc,A018592,22/03/2017,1343148,1077.6,Mobile Telephones
North West Leicestershire District Council,31UH,Information Technology,ICT Services,ICT,Orange Plc,A018592,22/03/2017,1343149,2434.3,Mobile Telephones
North West Leicestershire District Council,31UH,Legal & Democratic,Legal Services,LDLS,Mr Timothy Leader,A041711,22/03/2017,1343155,350,External Legal Fees & Advice
North West Leicestershire District Council,31UH,Housing,HRA Performance & Business Support,HRAPBS,Michael Page International Recruitment Ltd,A041893,29/03/2017,1343159,1360,Agency Staff
North West Leicestershire District Council,31UH,Neighbourhoods & Communities,N & C Community Safety,NACCS,Safe and Sound Derby,A042138,22/03/2017,1343214,504,Training Courses (Organised)
North West Leicestershire District Council,31UH,Housing Repairs,HRA Housing Repairs & Maintenance,HRAHRM,G Purchase Construction Ltd,A032830,22/03/2017,1343221,336.7,Housing repairs
North West Leicestershire District Council,31UH,Housing Repairs,HRA Housing Repairs & Maintenance,HRAHRM,G Purchase Construction Ltd,A032830,22/03/2017,1343222,266.57,Housing repairs
North West Leicestershire District Council,31UH,Housing Repairs,HRA Housing Repairs & Maintenance,HRAHRM,G Purchase Construction Ltd,A032830,22/03/2017,1343224,398.48,Housing repairs
North West Leicestershire District Council,31UH,Housing Repairs,HRA Housing Repairs & Maintenance,HRAHRM,G Purchase Construction Ltd,A032830,22/03/2017,1343226,405.62,Housing repairs
North West Leicestershire District Council,31UH,Housing Repairs,HRA Housing Repairs & Maintenance,HRAHRM,G Purchase Construction Ltd,A032830,22/03/2017,1343229,520.6,Housing repairs
North West Leicestershire District Council,31UH,Housing Repairs,HRA Housing Repairs & Maintenance,HRAHRM,G Purchase Construction Ltd,A032830,22/03/2017,1343232,4369.93,Housing repairs
North West Leicestershire District Council,31UH,Housing Repairs,HRA Housing Repairs & Maintenance,HRAHRM,Severn Trent Water Limited,A001468,22/03/2017,1343233,461.94,Water Charges (Metered)
North West Leicestershire District Council,31UH,Housing Repairs,HRA Housing Repairs & Maintenance,HRAHRM,Kier Services Maintenance East Ltd,A039980,22/03/2017,1343237,2218.22,Decent Homes
North West Leicestershire District Council,31UH,Housing Repairs,HRA Housing Repairs & Maintenance,HRAHRM,Kier Services Maintenance East Ltd,A039980,22/03/2017,1343238,532.43,Decent Homes
North West Leicestershire District Council,31UH,Housing Repairs,HRA Housing Repairs & Maintenance,HRAHRM,Kier Services Maintenance East Ltd,A039980,22/03/2017,1343239,1110.05,Decent Homes
North West Leicestershire District Council,31UH,Housing Repairs,HRA Housing Repairs & Maintenance,HRAHRM,Kier Services Maintenance East Ltd,A039980,22/03/2017,1343240,1446.19,Decent Homes
North West Leicestershire District Council,31UH,Housing Repairs,HRA Housing Repairs & Maintenance,HRAHRM,Kier Services Maintenance East Ltd,A039980,22/03/2017,1343241,2280.17,Decent Homes
North West Leicestershire District Council,31UH,Housing Repairs,HRA Housing Repairs & Maintenance,HRAHRM,Kier Services Maintenance East Ltd,A039980,22/03/2017,1343242,1900.14,Decent Homes
North West Leicestershire District Council,31UH,Housing Repairs,HRA Housing Repairs & Maintenance,HRAHRM,Kier Services Maintenance East Ltd,A039980,22/03/2017,1343243,1401.74,Decent Homes
North West Leicestershire District Council,31UH,Housing Repairs,HRA Housing Repairs & Maintenance,HRAHRM,Kier Services Maintenance East Ltd,A039980,22/03/2017,1343244,1631.53,Decent Homes
North West Leicestershire District Council,31UH,Housing Repairs,HRA Housing Repairs & Maintenance,HRAHRM,Kier Services Maintenance East Ltd,A039980,22/03/2017,1343245,1050.76,Decent Homes
North West Leicestershire District Council,31UH,Housing Repairs,HRA Housing Repairs & Maintenance,HRAHRM,Kier Services Maintenance East Ltd,A039980,22/03/2017,1343246,1281.66,Decent Homes
North West Leicestershire District Council,31UH,Housing Repairs,HRA Housing Repairs & Maintenance,HRAHRM,Kier Services Maintenance East Ltd,A039980,22/03/2017,1343247,2101.53,Decent Homes
North West Leicestershire District Council,31UH,Housing Repairs,HRA Housing Repairs & Maintenance,HRAHRM,Kier Services Maintenance East Ltd,A039980,22/03/2017,1343248,487.74,Decent Homes
North West Leicestershire District Council,31UH,Housing Repairs,HRA Housing Repairs & Maintenance,HRAHRM,Kier Services Maintenance East Ltd,A039980,22/03/2017,1343249,1175.14,Decent Homes
North West Leicestershire District Council,31UH,Housing Repairs,HRA Housing Repairs & Maintenance,HRAHRM,Kier Services Maintenance East Ltd,A039980,22/03/2017,1343250,1050.76,Decent Homes
North West Leicestershire District Council,31UH,Housing Repairs,HRA Housing Repairs & Maintenance,HRAHRM,Kier Services Maintenance East Ltd,A039980,22/03/2017,1343251,2101.53,Decent Homes
North West Leicestershire District Council,31UH,Housing Repairs,HRA Housing Repairs & Maintenance,HRAHRM,Kier Services Maintenance East Ltd,A039980,22/03/2017,1343252,1520.11,Decent Homes
North West Leicestershire District Council,31UH,Housing Repairs,HRA Housing Repairs & Maintenance,HRAHRM,Kier Services Maintenance East Ltd,A039980,22/03/2017,1343253,3358.3,Decent Homes
North West Leicestershire District Council,31UH,Housing Repairs,HRA Housing Repairs & Maintenance,HRAHRM,Kier Services Maintenance East Ltd,A039980,22/03/2017,1343254,3338.02,Decent Homes
North West Leicestershire District Council,31UH,Housing Repairs,HRA Housing Repairs & Maintenance,HRAHRM,Kier Services Maintenance East Ltd,A039980,22/03/2017,1343255,2533.2,Decent Homes
North West Leicestershire District Council,31UH,Housing Repairs,HRA Housing Repairs & Maintenance,HRAHRM,Kier Services Maintenance East Ltd,A039980,22/03/2017,1343256,2838.85,Decent Homes
North West Leicestershire District Council,31UH,Housing Repairs,HRA Housing Repairs & Maintenance,HRAHRM,Kier Services Maintenance East Ltd,A039980,22/03/2017,1343257,3122.74,Decent Homes
North West Leicestershire District Council,31UH,Housing Repairs,HRA Housing Repairs & Maintenance,HRAHRM,Kier Services Maintenance East Ltd,A039980,22/03/2017,1343258,379.15,Decent Homes
North West Leicestershire District Council,31UH,Housing Repairs,HRA Housing Repairs & Maintenance,HRAHRM,Kier Services Maintenance East Ltd,A039980,22/03/2017,1343259,433.62,Decent Homes
North West Leicestershire District Council,31UH,Housing Repairs,HRA Housing Repairs & Maintenance,HRAHRM,Kier Services Maintenance East Ltd,A039980,22/03/2017,1343260,813.43,Decent Homes
North West Leicestershire District Council,31UH,Housing Repairs,HRA Housing Repairs & Maintenance,HRAHRM,Kier Services Maintenance East Ltd,A039980,22/03/2017,1343261,379.15,Decent Homes
North West Leicestershire District Council,31UH,Housing Repairs,HRA Housing Repairs & Maintenance,HRAHRM,Kier Services Maintenance East Ltd,A039980,22/03/2017,1343262,812.77,Decent Homes
North West Leicestershire District Council,31UH,Housing Repairs,HRA Housing Repairs & Maintenance,HRAHRM,Kier Services Maintenance East Ltd,A039980,22/03/2017,1343263,433.62,Decent Homes
North West Leicestershire District Council,31UH,Housing Repairs,HRA Housing Repairs & Maintenance,HRAHRM,Kier Services Maintenance East Ltd,A039980,22/03/2017,1343264,2130.51,Decent Homes
North West Leicestershire District Council,31UH,Housing Repairs,HRA Housing Repairs & Maintenance,HRAHRM,Kier Services Maintenance East Ltd,A039980,22/03/2017,1343265,2366.96,Decent Homes
North West Leicestershire District Council,31UH,Housing Repairs,HRA Housing Repairs & Maintenance,HRAHRM,Kier Services Maintenance East Ltd,A039980,22/03/2017,1343266,2884.45,Decent Homes
North West Leicestershire District Council,31UH,Housing Repairs,HRA Housing Repairs & Maintenance,HRAHRM,Kier Services Maintenance East Ltd,A039980,22/03/2017,1343267,2884.45,Decent Homes
North West Leicestershire District Council,31UH,Housing Repairs,HRA Housing Repairs & Maintenance,HRAHRM,Kier Services Maintenance East Ltd,A039980,22/03/2017,1343268,2884.45,Decent Homes
North West Leicestershire District Council,31UH,Housing Repairs,HRA Housing Repairs & Maintenance,HRAHRM,Kier Services Maintenance East Ltd,A039980,22/03/2017,1343269,2498.95,Decent Homes
North West Leicestershire District Council,31UH,Housing Repairs,HRA Housing Repairs & Maintenance,HRAHRM,Kier Services Maintenance East Ltd,A039980,22/03/2017,1343270,379.15,Decent Homes
North West Leicestershire District Council,31UH,Housing Repairs,HRA Housing Repairs & Maintenance,HRAHRM,Kier Services Maintenance East Ltd,A039980,22/03/2017,1343271,379.15,Decent Homes
North West Leicestershire District Council,31UH,Housing Repairs,HRA Housing Repairs & Maintenance,HRAHRM,Kier Services Maintenance East Ltd,A039980,22/03/2017,1343272,433.62,Decent Homes
North West Leicestershire District Council,31UH,Housing Repairs,HRA Housing Repairs & Maintenance,HRAHRM,Kier Services Maintenance East Ltd,A039980,22/03/2017,1343273,557.43,Decent Homes
North West Leicestershire District Council,31UH,Housing Repairs,HRA Housing Repairs & Maintenance,HRAHRM,G Purchase Construction Ltd,A032830,22/03/2017,1343277,348.9,Housing repairs
North West Leicestershire District Council,31UH,Housing Repairs,HRA Housing Repairs & Maintenance,HRAHRM,G Purchase Construction Ltd,A032830,22/03/2017,1343278,331.36,Housing repairs
North West Leicestershire District Council,31UH,Housing Repairs,HRA Housing Repairs & Maintenance,HRAHRM,G Purchase Construction Ltd,A032830,22/03/2017,1343281,390.15,Housing repairs
North West Leicestershire District Council,31UH,Housing Repairs,HRA Housing Repairs & Maintenance,HRAHRM,G Purchase Construction Ltd,A032830,22/03/2017,1343286,876.07,Housing repairs
North West Leicestershire District Council,31UH,Housing Repairs,HRA Housing Repairs & Maintenance,HRAHRM,G Purchase Construction Ltd,A032830,22/03/2017,1343289,298.92,Housing repairs
North West Leicestershire District Council,31UH,Housing Repairs,HRA Housing Repairs & Maintenance,HRAHRM,G Purchase Construction Ltd,A032830,22/03/2017,1343294,933.25,Housing repairs
North West Leicestershire District Council,31UH,Housing Repairs,HRA Housing Repairs & Maintenance,HRAHRM,G Purchase Construction Ltd,A032830,22/03/2017,1343295,1060.8,Housing repairs
North West Leicestershire District Council,31UH,Housing Repairs,HRA Housing Repairs & Maintenance,HRAHRM,G Purchase Construction Ltd,A032830,22/03/2017,1343296,1047.42,Housing repairs
North West Leicestershire District Council,31UH,Housing Repairs,HRA Housing Repairs & Maintenance,HRAHRM,G Purchase Construction Ltd,A032830,22/03/2017,1343297,847.05,Housing repairs
North West Leicestershire District Council,31UH,Planning & Development,Environment Community Planning,ECP,Ashby Baptist Church,A030156,22/03/2017,1343299,500,Grants
North West Leicestershire District Council,31UH,Planning & Development,Environment Community Planning,ECP,Ashby de la Zouch Museum,A028013,22/03/2017,1343300,500,Grants
North West Leicestershire District Council,31UH,Planning & Development,Environment Community Planning,ECP,Moira Village Hall Trust,A000090,22/03/2017,1343301,500,Green Footprints Exp
North West Leicestershire District Council,31UH,Leisure & Culture,Cultural Services TIC,CULTIC,Hey  Beatles,A042848,22/03/2017,1343304,783,Theatre Tickets
North West Leicestershire District Council,31UH,Leisure & Culture,Cultural Services TIC,CULTIC,Roberts Coaches Limited,A017327,22/03/2017,1343305,1555.6,Coach Tours
North West Leicestershire District Council,31UH,Finance,Exchequer Services,EXCH,British Gas,A042590,22/03/2017,1343306,290,Electricity
North West Leicestershire District Council,31UH,Property Services,Property Facilities Management,PROPFM,John Merison BMC Ltd,A001092,29/03/2017,1343309,403.33,General Repairs
North West Leicestershire District Council,31UH,Property Services,Property Commercial Lettings,PROPCL,John Merison BMC Ltd,A001092,29/03/2017,1343313,362.94,General Repairs
North West Leicestershire District Council,31UH,Property Services,Property Commercial Lettings,PROPCL,John Merison BMC Ltd,A001092,29/03/2017,1343315,644.5,General Repairs
North West Leicestershire District Council,31UH,Property Services,Property Commercial Lettings,PROPCL,John Merison BMC Ltd,A001092,29/03/2017,1343316,11178.02,General Repairs
North West Leicestershire District Council,31UH,Leisure & Culture,Sport & Physical Activity,SPA,"Knight, Kavanagh & Page",A043152,29/03/2017,1343323,6180,Consultants Fees
North West Leicestershire District Council,31UH,Corporate Director,Human Resources,HR,Geoff Smith Associates Ltd,A041931,29/03/2017,1343328,664.36,Computing
North West Leicestershire District Council,31UH,Finance,Financial Planning,FINPLA,Moray Council,A043912,23/03/2017,1343332,2000000,Policy Lending
North West Leicestershire District Council,31UH,Finance,Financial Planning,FINPLA,The City of Liverpool,A043911,23/03/2017,1343333,2000000,Policy Lending
North West Leicestershire District Council,31UH,Finance,Financial Planning,FINPLA,Thurrock Council,A043910,23/03/2017,1343334,1000000,Policy Lending
North West Leicestershire District Council,31UH,Finance,Financial Planning,FINPLA,Cornwall  Council,A031018,23/03/2017,1343335,34280.82,Policy Lending
North West Leicestershire District Council,31UH,Legal & Democratic,Legal Services,LDLS,HMCTS,A033955,23/03/2017,1343336,308,External Legal Fees & Advice
North West Leicestershire District Council,31UH,Housing Repairs,HRA Housing Repairs & Maintenance,HRAHRM,Collective Enterprises Ltd,A036453,23/03/2017,1343337,46316.44,General Materials
North West Leicestershire District Council,31UH,Finance,Financial Planning,FINPLA,Salix Finance,A038252,23/03/2017,1343338,3980.06,Finance Lease Payment
North West Leicestershire District Council,31UH,Finance,Exchequer Services,EXCH,Office Furniture Online,A042250,23/03/2017,1343339,386,Office Furniture
North West Leicestershire District Council,31UH,Finance,Exchequer Services,EXCH,Severn Trent Water Limited,A042250,23/03/2017,1343340,250,Drainage Search
North West Leicestershire District Council,31UH,Housing,HRA Performance & Business Support,HRAPBS,Priority Estates Project Limited,A030740,29/03/2017,1343343,554,Training Expenses
North West Leicestershire District Council,31UH,Street Management,Environment Transport,ENOT,Ford & Slater Group Ltd,A000625,29/03/2017,1343344,945,Vehicle Parts
North West Leicestershire District Council,31UH,Neighbourhoods & Communities,N & C Community Safety,NACCS,Safe and Sound Derby,A042138,29/03/2017,1343345,504,Training Courses (Organised)
North West Leicestershire District Council,31UH,Leisure Centres,Hermitage Leisure Centre,HLC,MHG (Supplies) Ltd,A025712,29/03/2017,1343347,680,Stationery
North West Leicestershire District Council,31UH,Leisure Centres,Hermitage Bar & Catering,HLBC,Catering Services (Supplies) Ltd,A000310,29/03/2017,1343350,252.96,Catering Provisions
North West Leicestershire District Council,31UH,Leisure Centres,Hermitage Leisure Centre,HLC,First Aid International Limited,A034480,29/03/2017,1343363,319.38,Training Expenses
North West Leicestershire District Council,31UH,Housing Repairs,HRA Housing Repairs & Maintenance,HRAHRM,Lovell Partnerships Ltd,A039973,12/04/2017,1343366,3603.15,Decent Homes
North West Leicestershire District Council,31UH,Housing,HRA Housing Management,HRAHM,Riverview Tenants & Residents Association,A028377,29/03/2017,1343368,379.22,Other Miscellaneous Expenses
North West Leicestershire District Council,31UH,Property Services,Property Commercial Lettings,PROPCL,Coalville Cleaning Services,A003037,29/03/2017,1343370,289.95,Contract Cleaning
North West Leicestershire District Council,31UH,Property Services,Property Commercial Lettings,PROPCL,Coalville Cleaning Services,A003037,29/03/2017,1343371,558.06,Contract Cleaning
North West Leicestershire District Council,31UH,Leisure Centres,Hermitage Leisure Centre,HLC,Alfred Willday & Son Ltd,A033406,29/03/2017,1343372,250,Stationery
North West Leicestershire District Council,31UH,Finance,Revenues,REVS,Hinckley & Bosworth Borough Council,A000770,29/03/2017,1343380,1074.23,Revs & Bens expenditure funded by grants
North West Leicestershire District Council,31UH,Finance,Revenues,REVS,Hinckley & Bosworth Borough Council,A000770,29/03/2017,1343381,4000,Software Maintenance
North West Leicestershire District Council,31UH,Finance,Exchequer Services,EXCH,Comensura Limited,A036958,29/03/2017,1343384,28585.61,Agency Staff
North West Leicestershire District Council,31UH,Street Management,Environment Parks,ENOP,Rigby Taylor Limited,A001392,29/03/2017,1343390,407.5,Operational Equipment - Purchases
North West Leicestershire District Council,31UH,Information Technology,ICT Services,ICT,ACS Systems (UK) Ltd T/a ACS Office Solutions,A043447,29/03/2017,1343392,4890,Admin Equipment - Purchased & Recharged
North West Leicestershire District Council,31UH,Street Management,Environment Parks,ENOP,ESPO,A000958,29/03/2017,1343394,359,External Materials
North West Leicestershire District Council,31UH,Legal & Democratic,Civic Expenses,LDCE,Cuckoo Gap Limited,A000438,29/03/2017,1343408,3201.92,Signs & Notices
North West Leicestershire District Council,31UH,Street Management,Environment Transport,ENOT,Certas Energy Uk Ltd,A043448,29/03/2017,1343409,18603.08,Fuel
North West Leicestershire District Council,31UH,Street Management,Environment Transport,ENOT,Keith Cook Training Services,A027792,29/03/2017,1343412,661.5,Training Expenses
North West Leicestershire District Council,31UH,Street Management,Environment Waste Management,ENOWM,Graffiti Removal Ltd,A032393,29/03/2017,1343413,463.5,General Materials
North West Leicestershire District Council,31UH,Finance,Revenues,REVS,Morgan Hunt Public Sector Ltd,A033787,29/03/2017,1343421,888,Agency Staff
North West Leicestershire District Council,31UH,Finance,Financial Planning,FINPLA,Severn Trent Water Limited,A001468,27/03/2017,1343424,4729.68,Water Charges (Metered)
North West Leicestershire District Council,31UH,Finance,Financial Planning,FINPLA,Goldman Sachs Money Market Fund,A039248,27/03/2017,1343431,4400000,Policy Lending
North West Leicestershire District Council,31UH,Finance,Financial Planning,FINPLA,Scottish Widows Investment Partnerhiip,A039247,27/03/2017,1343432,1300000,Policy Lending
North West Leicestershire District Council,31UH,Finance,Financial Planning,FINPLA,North Lanarkshire Council,A043916,27/03/2017,1343433,2000000,Policy Lending
North West Leicestershire District Council,31UH,Finance,Exchequer Services,EXCH,H M Land Registry,A000713,27/03/2017,1343434,377,Land Registry Search Fees
North West Leicestershire District Council,31UH,Housing Repairs,HRA Housing Repairs & Maintenance,HRAHRM,Orbis Property Protection Ltd,A028149,29/03/2017,1343436,419,Void Property Clearance Services
North West Leicestershire District Council,31UH,Housing Repairs,HRA Housing Repairs & Maintenance,HRAHRM,Orbis Property Protection Ltd,A028149,29/03/2017,1343438,3395,Void Property Clearance Services
North West Leicestershire District Council,31UH,Housing Repairs,HRA Housing Repairs & Maintenance,HRAHRM,Orbis Property Protection Ltd,A028149,29/03/2017,1343441,419,Void Property Clearance Services
North West Leicestershire District Council,31UH,Housing Repairs,HRA Housing Repairs & Maintenance,HRAHRM,Orbis Property Protection Ltd,A028149,29/03/2017,1343442,270,Void Property Clearance Services
North West Leicestershire District Council,31UH,Housing Repairs,HRA Housing Repairs & Maintenance,HRAHRM,Sure Maintenance Ltd,A040460,29/03/2017,1343446,4233,Plumbing & Heating
North West Leicestershire District Council,31UH,Housing Repairs,HRA Housing Repairs & Maintenance,HRAHRM,Sure Maintenance Ltd,A040460,29/03/2017,1343454,3790.04,Plumbing & Heating
North West Leicestershire District Council,31UH,Housing Repairs,HRA Housing Repairs & Maintenance,HRAHRM,Sure Maintenance Ltd,A040460,29/03/2017,1343456,760,Plumbing & Heating
North West Leicestershire District Council,31UH,Housing Repairs,HRA Housing Repairs & Maintenance,HRAHRM,Sure Maintenance Ltd,A040460,29/03/2017,1343457,935,Plumbing & Heating
North West Leicestershire District Council,31UH,Street Management,Environment Parks,ENOP,Ibstock Parish Council,A000807,29/03/2017,1343458,3000,Recreation & Play Areas
North West Leicestershire District Council,31UH,Street Management,Environment Parks,ENOP,Ibstock Parish Council,A000807,29/03/2017,1343459,5325,Recreation & Play Areas
North West Leicestershire District Council,31UH,Finance,Financial Planning,FINPLA,Hugglescote & Donington Le Heath,A038616,29/03/2017,1343460,884,Section 106-Sence Valley Improvements
North West Leicestershire District Council,31UH,Finance,Financial Planning,FINPLA,The National Forest Company,A027538,29/03/2017,1343461,26633.41,National Forest Payments
North West Leicestershire District Council,31UH,Finance,Financial Planning,FINPLA,The National Forest Company,A027538,29/03/2017,1343462,10243.62,National Forest Payments
North West Leicestershire District Council,31UH,Housing Repairs,HRA Housing Repairs & Maintenance,HRAHRM,Orbis Property Protection Ltd,A028149,29/03/2017,1343472,270,Void Property Clearance Services
North West Leicestershire District Council,31UH,Housing Repairs,HRA Housing Repairs & Maintenance,HRAHRM,TECSERV UK LIMITED,A028261,29/03/2017,1343473,268.84,Door Entry Systems
North West Leicestershire District Council,31UH,Housing Repairs,HRA Housing Repairs & Maintenance,HRAHRM,TECSERV UK LIMITED,A028261,29/03/2017,1343475,261.08,Door Entry Systems
North West Leicestershire District Council,31UH,Housing,HRA Housing Management,HRAHM,JLA Limited,A043639,31/03/2017,1343483,364.77,Cleaning & Domestic Equipment
North West Leicestershire District Council,31UH,Street Management,Environment Parks,ENOP,Gilvar Lining Ltd,A040848,29/03/2017,1343484,464,External Materials
North West Leicestershire District Council,31UH,Street Management,Environment Parks,ENOP,Taylors Buildbase,A035303,29/03/2017,1343486,281.56,Operational Equipment - Purchases
North West Leicestershire District Council,31UH,Street Management,Environment - Street Scene,ESS,Open Box Promotions,A039721,29/03/2017,1343487,285,Publicity & Promotion
North West Leicestershire District Council,31UH,Leisure Centres,Hood Park Leisure Centre,HPLC,Insight Uk,A021505,29/03/2017,1343488,325.64,Operational Equipment
North West Leicestershire District Council,31UH,Street Management,Environment Waste Management,ENOWM,Groundsman Tools & Supplies,A030744,31/03/2017,1343491,465.24,Service Improvements
North West Leicestershire District Council,31UH,Finance,Financial Planning,FINPLA,Whitwick Parish Council,A038617,29/03/2017,1343492,493,Parish Council Payments
North West Leicestershire District Council,31UH,Finance,Financial Planning,FINPLA,Hugglescote & Donington Le Heath,A038616,29/03/2017,1343493,534.5,Parish Council Payments
North West Leicestershire District Council,31UH,Neighbourhoods & Communities,N & C Community Safety,NACCS,Community Education & Enterprise,A038271,29/03/2017,1343497,685.09,Community Initiatives
North West Leicestershire District Council,31UH,Environmental Health,Environmental Services,EES,Sita UK Ltd,A001108,29/03/2017,1343498,378.25,Tipping Charges
North West Leicestershire District Council,31UH,Environmental Health,Environmental Services,EES,Beaver Bridges Ltd,A043593,29/03/2017,1343502,22422,Bridge repairs/Construction
North West Leicestershire District Council,31UH,Environmental Health,Environmental Services,EES,Jon Etchells Consulting Ltd,A029305,29/03/2017,1343503,3087.2,External Legal Fees & Advice
North West Leicestershire District Council,31UH,Housing Repairs,HRA Housing Repairs & Maintenance,HRAHRM,Robert Woodhead Ltd,A043924,29/03/2017,1343509,335759.21,Legal & Professional Services
North West Leicestershire District Council,31UH,Environmental Health,Environmental Services,EES,Severn Trent Water Limited,A001468,29/03/2017,1343511,910.13,Water Charges (Metered)
North West Leicestershire District Council,31UH,Legal & Democratic,Legal Services,LDLS,J Mansfield & Son,A043925,29/03/2017,1343521,11464.67,Appeals-Awards
North West Leicestershire District Council,31UH,Street Management,Environment Transport,ENOT,Mertrux Ltd,A035291,29/03/2017,1343551,284.35,Repairs - Parts
North West Leicestershire District Council,31UH,Street Management,Environment Transport,ENOT,Malvern Tyres,A035175,29/03/2017,1343553,377.3,Vehicle Parts
North West Leicestershire District Council,31UH,Street Management,Environment Transport,ENOT,Lee Wells Autobodies Ltd,A031849,29/03/2017,1343566,1290.15,Vandalism
North West Leicestershire District Council,31UH,Street Management,Environment Transport,ENOT,S & B Tyres Limited,A034071,29/03/2017,1343568,315,Transport Costs - Tyres
North West Leicestershire District Council,31UH,Street Management,Environment Transport,ENOT,Calor Gas Limited,A032686,29/03/2017,1343569,1138.61,Gas
North West Leicestershire District Council,31UH,Corporate Director,Human Resources,HR,Specsavers Corporate Eyecare,A028625,29/03/2017,1343576,525,Eye Care Vouchers
North West Leicestershire District Council,31UH,Information Technology,ICT Services,ICT,Premier Paper Group,A042438,29/03/2017,1343577,392.38,Consumable Materials
North West Leicestershire District Council,31UH,Housing,HRA Housing Management,HRAHM,Pinewood Lodge,A032364,29/03/2017,1343578,374.99,General Repairs
North West Leicestershire District Council,31UH,Property Services,Property Commercial Lettings,PROPCL,John Merison BMC Ltd,A001092,29/03/2017,1343579,1489.7,Vandalism
North West Leicestershire District Council,31UH,Street Management,Environment Transport,ENOT,Henton & Chattell Limited,A000757,29/03/2017,1343582,612.24,Repairs - Parts
North West Leicestershire District Council,31UH,Street Management,Environment - Street Scene,ESS,ESPO,A000958,29/03/2017,1343584,10133.38,Gas
North West Leicestershire District Council,31UH,Information Technology,ICT Services,ICT,Firmstep,A030931,29/03/2017,1343586,1100,Contract Payments (Other) Ext
North West Leicestershire District Council,31UH,Finance,Exchequer Services,EXCH,Insight Uk,A021505,29/03/2017,1343593,10608,Contract Payments (Other) Ext
North West Leicestershire District Council,31UH,Street Management,Environment Transport,ENOT,Mertrux Ltd,A035291,31/03/2017,1343609,284.35,Scheduled Servicing - Parts
North West Leicestershire District Council,31UH,Street Management,Environment Transport,ENOT,J F Lloyd & Sons,A000991,31/03/2017,1343619,350,Hire Of Operational Equipment
North West Leicestershire District Council,31UH,Street Management,Environment Transport,ENOT,J F Lloyd & Sons,A000991,31/03/2017,1343620,300,Hire Of Operational Equipment
North West Leicestershire District Council,31UH,Property Services,Property Facilities Management,PROPFM,John Merison BMC Ltd,A001092,31/03/2017,1343626,397.78,General Repairs
North West Leicestershire District Council,31UH,Property Services,Property Commercial Lettings,PROPCL,John Merison BMC Ltd,A001092,31/03/2017,1343628,276.18,General Repairs
North West Leicestershire District Council,31UH,Street Management,Environment Transport,ENOT,Scarab Sweepers Limited,A001445,31/03/2017,1343640,120105,Items To Be Leased
North West Leicestershire District Council,31UH,Leisure Centres,Hermitage Bar & Catering,HLBC,Snackline Direct Ltd,A042489,31/03/2017,1343644,660.39,Vending Machine Provisions
North West Leicestershire District Council,31UH,Housing Repairs,HRA Housing Repairs & Maintenance,HRAHRM,G Purchase Construction Ltd,A032830,31/03/2017,1343645,325.11,Housing repairs
North West Leicestershire District Council,31UH,Housing Repairs,HRA Housing Repairs & Maintenance,HRAHRM,G Purchase Construction Ltd,A032830,31/03/2017,1343646,265,Housing repairs
North West Leicestershire District Council,31UH,Housing Repairs,HRA Housing Repairs & Maintenance,HRAHRM,G Purchase Construction Ltd,A032830,31/03/2017,1343647,306.38,Housing repairs
North West Leicestershire District Council,31UH,Housing Repairs,HRA Housing Repairs & Maintenance,HRAHRM,G Purchase Construction Ltd,A032830,31/03/2017,1343648,719.73,Housing repairs
North West Leicestershire District Council,31UH,Street Management,Environment Transport,ENOT,Ford & Slater Group Ltd,A000625,31/03/2017,1343652,270.59,Scheduled Servicing - Parts
North West Leicestershire District Council,31UH,Housing Repairs,HRA Housing Repairs & Maintenance,HRAHRM,John Abbott (Flooring Contractors) Limited,A043890,31/03/2017,1343653,1750,Legal & Professional Services
North West Leicestershire District Council,31UH,Planning & Development,Environment Community Planning,ECP,Castle Donington College,A000302,31/03/2017,1343654,400,Local Sports Alliance
North West Leicestershire District Council,31UH,Chief Exec,Chief Executive,CHEX,Infrastructure & Environment UK Ltd,A041786,31/03/2017,1343655,4858,Legal & Professional Services
North West Leicestershire District Council,31UH,Street Management,Environment - Street Scene,ESS,Lichfield District Council,A032695,31/03/2017,1343656,2216.98,River Mease Project
North West Leicestershire District Council,31UH,Environmental Health,Environmental Services,EES,Mewies Engineering Consultants Ltd,A043524,31/03/2017,1343659,675,External Legal Fees & Advice
North West Leicestershire District Council,31UH,Environmental Health,Environmental Services,EES,Valuation Office Agency,A036190,31/03/2017,1343660,2500,External Legal Fees & Advice
North West Leicestershire District Council,31UH,Environmental Health,Environmental Services,EES,Valuation Office Agency,A036190,31/03/2017,1343661,2500,External Legal Fees & Advice
North West Leicestershire District Council,31UH,Environmental Health,Environmental Services,EES,GHM Planning Limited,A034296,31/03/2017,1343662,819.8,External Legal Fees & Advice
North West Leicestershire District Council,31UH,Environmental Health,Environmental Services,EES,GHM Planning Limited,A034296,31/03/2017,1343663,1499.9,External Legal Fees & Advice
North West Leicestershire District Council,31UH,Leisure Centres,Hermitage Leisure Centre,HLC,Leicestershire County Council Central Print,A037238,31/03/2017,1343671,435.22,Publicity & Promotion
North West Leicestershire District Council,31UH,Property Services,Property Facilities Management,PROPFM,ESPO,A000958,31/03/2017,1343677,427.56,Cleaning & Domestic Equipment
